fUSD/lending_fUSD_20251215
["ID","MTS","AMOUNT","RATE_DAILY","PERIOD"]
[398562049,1765828024989,-151.0,0.00042201,120]
[398562050,1765828025034,-171.572676,0.00042201,120]
[398562051,1765828025079,-171.572676,0.00042201,120]
[398562052,1765828025122,-182.063889,0.00042201,120]
[398562053,1765828025170,-182.06389,0.00042201,120]
[398562054,1765828025215,-171.572676,0.00042201,120]
[398562055,1765828025260,-151.0,0.00042201,120]
[398562056,1765828025306,-171.572684,0.00042201,120]
[398562057,1765828025353,-151.0,0.00042201,120]
[398562058,1765828025396,-151.0,0.00042201,120]
[398562059,1765828025441,-151.0,0.00042201,120]
[398562060,1765828025482,-151.0,0.00042201,120]
[398562061,1765828025522,-151.0,0.00042201,120]
[398562062,1765828025565,-151.0,0.00042201,30]
[398562063,1765828025608,-151.0,0.00042201,30]
[398562064,1765828025651,-151.0,0.00042201,120]
[398562065,1765828025692,-151.0,0.00042201,120]
[398562066,1765828025732,-151.0,0.00042201,120]
[398562067,1765828025772,-151.0,0.00042201,120]
[398562068,1765828025811,-216.66725917,0.00042203,120]
[398562069,1765828025848,-215.39289731,0.00042203,120]
[398562070,1765828025886,-215.39289731,0.00042203,120]
[398562071,1765828025923,-215.39289731,0.00042203,120]
[398562072,1765828025960,-227.91,0.00042207,120]
[398562073,1765828025998,-152.35,0.00042261,120]
[398562074,1765828026036,-500.0,0.0004227,60]
[398562075,1765828026075,-331.34,0.00042271,120]
[398562076,1765828026115,-3000.0,0.00042276,60]
[398562077,1765828026156,-2577.406169,0.000423,120]
[398562078,1765828026196,-227.91,0.00042307,120]
[398562079,1765828026238,-2724.0,0.00042319,58]
[398562080,1765828026278,-532.0,0.00042329,120]
[398562081,1765828026317,-152.35,0.00042361,120]
[398562082,1765828026358,-331.34,0.00042371,120]
[398562083,1765828026396,-421.1113739,0.000424,120]
[398562084,1765828026454,-1899.39,0.00042401,120]
[398562085,1765828026495,-1899.39,0.00042401,120]
[398562086,1765828026538,-1899.39,0.00042401,120]
[398562087,1765828026576,-1899.39,0.00042401,120]
[398562088,1765828026614,-1899.39,0.00042401,120]
[398562089,1765828026650,-1899.39,0.00042401,120]
[398562090,1765828026689,-1899.39,0.00042401,120]
[398562091,1765828026725,-1899.39,0.00042401,120]
[398562092,1765828026762,-1899.39,0.00042401,120]
[398562093,1765828026799,-1899.39,0.00042401,120]
[398562094,1765828026837,-1899.39,0.00042401,120]
[398562095,1765828026876,-1899.39,0.00042401,120]
[398562096,1765828026914,-1899.39,0.00042401,120]
[398562097,1765828026956,-1899.39,0.00042401,120]
[398562098,1765828026995,-1899.39,0.00042401,120]
[398562099,1765828027040,-1899.39,0.00042401,120]
[398562100,1765828027095,-1899.39,0.00042401,120]
[398562101,1765828027142,-1899.39,0.00042401,120]
[398562102,1765828027191,-1899.39,0.00042401,120]
[398562103,1765828027232,-1899.39,0.00042401,120]
[398562104,1765828027273,-1899.39,0.00042401,120]
[398562105,1765828027309,-1899.39,0.00042401,120]
[398562106,1765828027348,-1899.39,0.00042401,120]
[398562107,1765828027387,-1899.62956436,0.00042401,120]
[398562108,1765828027427,-150.0,0.00042406,120]
[398562109,1765828027469,-500.0,0.00042407,60]
[398562110,1765828027508,-227.91,0.00042407,120]
[398562111,1765828027551,-152.35,0.00042461,120]
[398562112,1765828027592,-199.0,0.00042465,42]
[398562113,1765828027632,-532.0,0.00042466,120]
[398562114,1765828027674,-331.34,0.00042471,120]
[398562115,1765828027722,-1702.12034515,0.000425,60]
[398562116,1765828027759,-2540.0,0.000425,120]
[398562117,1765828027796,-978.66,0.000425,60]
[398562118,1765828027834,-2284.94,0.000425,120]
[398562119,1765828027872,-1590.4556387,0.000425,120]
[398562120,1765828027911,-26921.1741837,0.000425,120]
[398562121,1765828027949,-3000.0,0.000425,120]
[398562122,1765828027988,-227.91,0.00042507,120]
[398562123,1765828028027,-500.0,0.00042544,60]
[398562124,1765828028067,-209.0,0.0004256,90]
[398562125,1765828028107,-152.35,0.00042561,120]
[398562126,1765828028146,-219.37276459,0.00042568,120]
[398562127,1765828028186,-331.34,0.00042571,120]
[398562128,1765828028226,-532.0,0.00042603,120]
[398562129,1765828028268,-227.91,0.00042607,120]
[398562130,1765828028310,-152.35,0.00042661,120]
[398562131,1765828028358,-331.34,0.00042671,120]
[398562132,1765828028397,-500.0,0.00042681,60]
[398562133,1765828028442,-227.91,0.00042707,120]
[398562134,1765828028483,-203.94007286,0.0004274,30]
[398562135,1765828028523,-532.0,0.0004274,120]
[398562136,1765828028566,-152.35,0.00042761,120]
[398562137,1765828029401,-331.34,0.00042771,120]
[398562138,1765828029445,-1180.47974376,0.000428,120]
[398562139,1765828029488,-227.91,0.00042807,120]
[398562140,1765828029544,-500.0,0.00042818,60]
[398562141,1765828029590,-152.35,0.00042861,120]
[398562142,1765828029633,-331.34,0.00042871,120]
[398562143,1765828029676,-532.0,0.00042877,120]
[398562144,1765828029721,-228.09492767,0.00042907,120]
[398562145,1765828029765,-208.0,0.0004295,30]
[398562146,1765828029808,-632.41855692,0.00042955,60]
[398562147,1765828029853,-152.35,0.00042961,120]
[398562148,1765828029905,-331.47078706,0.00042971,120]
[398562149,1765828029951,-4162.43,0.00043,30]
[398562150,1765828029998,-1444.70302892,0.00043,120]
[398562151,1765828030043,-253.91063684,0.00043,120]
[398562152,1765828030088,-1750.99041499,0.00043,120]
[398562153,1765828030132,-150.0,0.00043,120]
[398562154,1765828030174,-1000.0,0.00043,120]
[398562155,1765828030217,-681.43422654,0.00043,120]
[398562156,1765828030262,-178.45861381,0.00043,120]
[398562157,1765828030306,-1000.0,0.00043,120]
[398562158,1765828030350,-1000.0,0.00043,120]
[398562159,1765828030394,-173.70933643,0.00043,120]
[398562160,1765828030441,-501.0,0.00043,65]
[398562161,1765828030482,-811.74296446,0.00043,120]
[398562162,1765828030524,-3798.0,0.00043,120]
[398562163,1765828030573,-250.0,0.00043,120]
[398562164,1765828030616,-27844.54010583,0.00043,120]
[398562165,1765828030660,-150.0,0.00043,60]
[398562166,1765828030704,-532.0,0.00043014,120]
[398562167,1765828030750,-152.35,0.00043061,120]
[398562168,1765828030793,-199.0,0.0004315,43]
[398562169,1765828030834,-532.0,0.00043151,120]
[398562170,1765828030881,-152.35,0.00043161,120]
[398562171,1765828030923,-1548.73867035,0.000432,120]
[398562172,1765828030964,-556.3851,0.0004322,30]
[398562173,1765828031007,-152.35,0.00043261,120]
[398562174,1765828031048,-532.0,0.00043288,120]
[398562175,1765828031090,-152.35,0.00043361,120]
[398562176,1765828031132,-3000.0,0.00043372,60]
[398562177,1765828031181,-2545.0,0.00043419,120]
[398562178,1765828031225,-153.0,0.00043419,120]
[398562179,1765828031275,-153.0,0.00043419,120]
[398562180,1765828031319,-153.0,0.00043419,120]
[398562181,1765828031361,-153.0,0.00043419,120]
[398562182,1765828031401,-153.0,0.00043419,120]
[398562183,1765828031443,-153.0,0.00043419,120]
[398562184,1765828031484,-153.0,0.00043419,120]
[398562185,1765828031526,-153.0,0.00043419,120]
[398562186,1765828031566,-153.0,0.00043419,120]
[398562187,1765828031609,-153.0,0.00043419,120]
[398562188,1765828031653,-153.0,0.00043419,120]
[398562189,1765828031695,-153.0,0.00043419,120]
[398562190,1765828031737,-153.0,0.00043419,120]
[398562191,1765828031780,-153.0,0.00043419,120]
[398562192,1765828031827,-153.0,0.00043419,120]
[398562193,1765828031869,-153.0,0.00043419,120]
[398562194,1765828031911,-153.0,0.00043419,120]
[398562195,1765828031958,-153.0,0.00043419,120]
[398562196,1765828032012,-153.0,0.00043419,120]
[398562197,1765828032059,-153.0,0.00043419,120]
[398562198,1765828032104,-153.0,0.00043419,120]
[398562199,1765828032148,-153.0,0.00043419,120]
[398562200,1765828032190,-153.0,0.00043419,120]
[398562201,1765828032238,-153.0,0.00043419,120]
[398562202,1765828032288,-153.0,0.00043419,120]
[398562203,1765828032334,-153.0,0.00043419,120]
[398562204,1765828032376,-153.0,0.00043419,120]
[398562205,1765828032417,-153.0,0.00043419,120]
[398562206,1765828032463,-153.0,0.00043419,120]
[398562207,1765828032508,-153.0,0.00043419,120]
[398562208,1765828032551,-153.0,0.00043419,120]
[398562209,1765828032594,-153.0,0.00043419,120]
[398562210,1765828032637,-153.0,0.00043419,120]
[398562211,1765828032681,-153.0,0.00043419,120]
[398562212,1765828032725,-153.0,0.00043419,120]
[398562213,1765828032765,-153.0,0.00043419,120]
[398562214,1765828032805,-153.0,0.00043419,120]
[398562215,1765828032844,-153.0,0.00043419,120]
[398562216,1765828032885,-153.0,0.00043419,120]
[398562217,1765828032930,-153.0,0.00043419,120]
[398562218,1765828032974,-153.0,0.00043419,120]
[398562219,1765828033019,-153.0,0.00043419,120]
[398562220,1765828033064,-153.0,0.00043419,120]
[398562221,1765828033109,-153.0,0.00043419,120]
[398562222,1765828033152,-153.0,0.00043419,120]
[398562223,1765828033198,-153.0,0.00043419,120]
[398562224,1765828033242,-153.0,0.00043419,120]
[398562225,1765828033287,-153.0,0.00043419,120]
[398562226,1765828033330,-153.0,0.00043419,120]
[398562227,1765828033371,-153.0,0.00043419,120]
[398562228,1765828033414,-153.0,0.00043419,120]
[398562229,1765828033458,-153.0,0.00043419,120]
[398562230,1765828034154,-153.0,0.00043419,120]
[398562231,1765828034204,-153.0,0.00043419,120]
[398562232,1765828034253,-153.0,0.00043419,120]
[398562233,1765828034300,-153.0,0.00043419,120]
[398562234,1765828034345,-153.0,0.00043419,120]
[398562235,1765828034391,-532.0,0.00043425,120]
[398562236,1765828034439,-152.35,0.00043461,120]
[398562237,1765828034485,-2239.99058318,0.00043481,30]
[398562238,1765828034533,-200.0,0.00043499,120]
[398562239,1765828034580,-152.35,0.00043561,120]
[398562240,1765828034623,-532.0,0.00043562,120]
[398562241,1765828034665,-152.35,0.00043661,120]
[398562242,1765828034706,-532.0,0.00043699,120]
[398562243,1765828034748,-500.0,0.000437,120]
[398562244,1765828034788,-528.32,0.000437,120]
[398562245,1765828034827,-235.98880936,0.000437,120]
[398562246,1765828034868,-152.35,0.00043761,120]
[398562247,1765828034906,-500.69354052,0.000438,30]
[398562248,1765828034945,-48953.25399659,0.000438,30]
[398562249,1765828034987,-783.74,0.000438,120]
[398562250,1765828035031,-151.49327998,0.00043835,44]
[398562255,1765828052937,166.66,0.00014848,2]
[398562256,1765828052978,166.66,0.00015161,2]
[398562257,1765828053024,166.66,0.00015473,2]
[398562258,1765828081803,183.0,0.00015339,2]
[398562259,1765828094212,195.0,0.00015562,2]
[398562277,1765828231878,-166.66,0.00015786,2]
[398562278,1765828231888,-2281.72172906,0.00015835,2]
[398562279,1765828231931,-826.21827094,0.00015835,2]
[398562280,1765828231940,-1200.0,0.00015836,2]
[398562281,1765828231949,-300.0,0.00015836,2]
[398562282,1765828231958,-300.0,0.00015836,2]
[398562283,1765828231967,-47908.45411438,0.00015837,2]
[398562303,1765828238005,-3593.78780218,0.00015837,2]
[398562323,1765828239843,-4480.8035198,0.00015837,2]
[398562324,1765828239897,-467.97099624,0.00015837,2]
[398562325,1765828239952,-323.35681487,0.00015837,2]
[398562326,1765828239964,-332.13228803,0.00015837,2]
[398562327,1765828239975,-1427.5027801,0.00015837,2]
[398562328,1765828239987,-1059.80161734,0.00015837,2]
[398562329,1765828240007,-949.309992,0.00015837,2]
[398562330,1765828240019,-434.04911279,0.00015837,2]
[398562331,1765828240060,-5055.81736227,0.00015837,2]
[398562332,1765828240070,-1801.16471037,0.00015837,2]
[398562333,1765828240080,-640.55291637,0.00015837,2]
[398562334,1765828240090,-300.0,0.00015935,2]
[398562335,1765828240100,-1874.10523767,0.00015936,2]
[398562336,1765828240110,-295.44,0.00015936,2]
[398562337,1765828240119,-3056.9261,0.00015937,2]
[398562338,1765828240129,-1000.0,0.00015937,2]
[398562339,1765828240138,-500.0,0.00016036,2]
[398562340,1765828240148,-500.0,0.00016036,2]
[398562341,1765828240157,-500.0,0.00016036,2]
[398562342,1765828240167,-500.0,0.00016036,2]
[398562343,1765828240182,-500.0,0.00016036,2]
[398562344,1765828240192,-222.22156466,0.00016036,2]
[398562345,1765828240201,-500.0,0.00016036,2]
[398562346,1765828240211,-500.0,0.00016036,2]
[398562347,1765828240221,-500.0,0.00016036,2]
[398562349,1765828240231,-500.0,0.00016036,2]
[398562351,1765828240241,-500.0,0.00016036,2]
[398562352,1765828240250,-500.0,0.00016036,2]
[398562353,1765828240260,-166.66,0.00016098,2]
[398562354,1765828240270,-166.66,0.00016101,2]
[398562355,1765828240280,-500.0,0.00016173,2]
[398562356,1765828240290,-452.94489048,0.00016173,2]
[398562357,1765828240307,-47.05510952,0.00016173,2]
[398562358,1765828240318,-500.0,0.00016173,2]
[398562359,1765828240328,-500.0,0.00016173,2]
[398562360,1765828240338,-500.0,0.00016173,2]
[398562361,1765828240348,-500.0,0.00016173,2]
[398562362,1765828240358,-500.38142603,0.00016173,2]
[398562363,1765828240368,-534.13325228,0.00016173,2]
[398562364,1765828240378,-500.0,0.00016173,2]
[398562365,1765828240387,-250.59182654,0.00016173,2]
[398562366,1765828240397,-500.0,0.00016173,2]
[398562367,1765828240407,-500.0,0.00016173,2]
[398562368,1765828240416,-500.0,0.00016173,2]
[398562369,1765828240426,-500.0,0.00016173,2]
[398562370,1765828240435,-483.18383313,0.00016173,2]
[398562371,1765828240452,-143.27006423,0.00016173,2]
[398562372,1765828240462,-315.21795353,0.00016173,2]
[398562373,1765828240471,-500.0,0.00016173,2]
[398562374,1765828240481,-500.0,0.00016173,2]
[398562375,1765828240496,-500.0,0.00016173,2]
[398562376,1765828240506,-500.0,0.00016173,2]
[398562377,1765828240516,-500.0,0.00016173,2]
[398562378,1765828240525,-500.0,0.00016173,2]
[398562379,1765828240535,-500.0,0.00016173,2]
[398562380,1765828240551,-500.0,0.00016173,2]
[398562381,1765828240565,-500.0,0.00016173,2]
[398562382,1765828240576,-500.0,0.00016173,2]
[398562383,1765828240586,-500.0,0.00016173,2]
[398562384,1765828240595,-500.0,0.00016173,2]
[398562385,1765828240606,-1801.16471031,0.00016177,2]
[398562386,1765828240615,-295.44,0.0001621,2]
[398562387,1765828240625,-640.55291633,0.00016275,2]
[398562388,1765828240635,-3025.2894739,0.00016285,2]
[398562389,1765828240644,-500.0,0.0001631,2]
[398562390,1765828240654,-308.89042449,0.00016333,2]
[398562391,1765828240664,-150.39,0.00016355,2]
[398562392,1765828240674,-166.66,0.00016411,2]
[398562393,1765828240684,-902.0,0.00016437,2]
[398562394,1765828240694,-4879.67,0.00016438,2]
[398562395,1765828240703,-295.44,0.00016484,2]
[398562396,1765828240713,-574.14587518,0.00016493,2]
[398562404,1765828242905,-1334.85412482,0.00016493,2]
[398562405,1765828242915,-261.07927239,0.00016493,2]
[398562406,1765828242925,-932.2,0.0001651,2]
[398562407,1765828242935,-1801.16471031,0.00016518,2]
[398562408,1765828242944,-221.0,0.00016526,2]
[398562409,1765828242954,-1826.0,0.00016559,2]
[398562410,1765828242964,-500.0,0.00016584,2]
[398562411,1765828242974,-166.66,0.00016633,2]
[398562412,1765828242984,-640.55291633,0.00016712,2]
[398562413,1765828242994,-1000.0,0.00016721,2]
[398562414,1765828243004,-1000.0,0.00016721,2]
[398562415,1765828243015,-1000.0,0.00016721,2]
[398562416,1765828243025,-500.0,0.00016721,2]
[398562417,1765828243035,-1000.0,0.00016721,2]
[398562418,1765828243045,-1628.91162981,0.00016731,2]
[398562419,1765828243064,-295.44,0.00016758,2]
[398562420,1765828243076,-1801.16471031,0.00016858,2]
[398562421,1765828243086,-288.0,0.0001687,2]
[398562422,1765828243095,-195.0,0.00016873,2]
[398562423,1765828243106,-300.0,0.00016873,2]
[398562424,1765828243116,-250.0,0.00016873,2]
[398562425,1765828243125,-214.9055753,0.00016881,2]
[398562426,1765828243136,-5585.62763853,0.000169,3]
[398562427,1765828243146,-7117.703725,0.00016989,2]
[398562428,1765828243155,-194.21929349,0.0001699,2]
[398562429,1765828243164,-200.0,0.0001699,2]
[398562430,1765828243175,-200.0,0.0001699,2]
[398562431,1765828243184,-151.0,0.0001699,2]
[398562432,1765828243195,-151.0,0.0001699,2]
[398562433,1765828243205,-151.0,0.0001699,2]
[398562434,1765828243215,-151.0,0.0001699,2]
[398562435,1765828243227,-151.0,0.0001699,2]
[398562436,1765828243238,-151.0,0.0001699,2]
[398562437,1765828243250,-151.0,0.0001699,2]
[398562438,1765828243260,-151.0,0.0001699,2]
[398562439,1765828243270,-214.76652521,0.0001699,2]
[398562440,1765828243280,-164.22,0.0001699,2]
[398562441,1765828243291,-164.22,0.0001699,2]
[398562442,1765828243302,-164.22,0.0001699,2]
[398562443,1765828243312,-164.22,0.0001699,2]
[398562444,1765828243323,-151.0,0.00016997,2]
[398562445,1765828243333,-151.0,0.00016997,2]
[398562446,1765828243342,-150.0,0.00016999,2]
[398562447,1765828243352,-6413.32,0.00016999,2]
[398562448,1765828243361,-1256330.54987839,0.00017,2]
[398562449,1765828243374,-2934.56041804,0.00017,2]
[398562450,1765828243386,-748.39607291,0.00017,2]
[398562451,1765828243398,-662.97977741,0.00017,2]
[398562452,1765828243409,-1152.94991053,0.00017,2]
[398562453,1765828243448,-257.41840105,0.00017,2]
[398562454,1765828243491,-15652.93825735,0.00017,2]
[398562455,1765828243505,-294.77570131,0.00017,2]
[398562456,1765828243517,-6120.34283461,0.00017,2]
[398562457,1765828243531,-1801.66904595,0.00017,2]
[398562458,1765828243575,-777.45991394,0.00017,2]
[398562461,1765828247997,-8805.00926908,0.00017,2]
[398562462,1765828248031,-630.86507306,0.00017,2]
[398562463,1765828248086,-975.43176676,0.00017,2]
[398562464,1765828248104,-569.93088227,0.00017,2]
[398562595,1765829428625,869.38,0.00013699,2]
[398562629,1765829434324,-152.26,0.00015926,2]
[398562630,1765829434334,-953.41263688,0.00015972,2]
[398562631,1765829434345,-646.58736312,0.00015972,2]
[398562632,1765829434354,-12.55835518,0.00016035,3]
[398562633,1765829434365,-410.85396612,0.00016035,3]
[398562634,1765829434386,-575.5876787,0.00016035,3]
[398562635,1765829434395,-567.73601868,0.0001617,2]
[398562636,1765829434410,-632.26398132,0.0001617,2]
[398562637,1765829434423,-300.0,0.0001617,2]
[398562638,1765829434433,-300.0,0.0001617,2]
[398562639,1765829434442,-433.0,0.00016171,2]
[398562640,1765829434451,-4639.83813338,0.00016172,2]
[398562641,1765829434463,-387.105,0.00016172,2]
[398562645,1765829438107,-289.80686662,0.00016172,2]
[398562646,1765829438117,-500.0,0.00016173,2]
[398562647,1765829438126,-500.0,0.00016173,2]
[398562648,1765829438136,-500.0,0.00016173,2]
[398562649,1765829438145,-500.0,0.00016173,2]
[398562650,1765829438154,-500.0,0.00016173,2]
[398562651,1765829438164,-1229.48045265,0.0001645,2]
[398562652,1765829438173,-597.63,0.00016465,2]
[398562653,1765829438183,-250.0,0.00016505,2]
[398562654,1765829438193,-480.76,0.000167,2]
[398562655,1765829438203,-883.03,0.000167,2]
[398562656,1765829438213,-658.61,0.000167,2]
[398562657,1765829438223,-5129.53149923,0.000167,2]
[398562658,1765829438234,-5396.48880239,0.000167,2]
[398562659,1765829438254,-991.61565044,0.000167,2]
[398562660,1765829438267,-2138.23077622,0.000167,2]
[398562661,1765829438325,-76.62707172,0.000167,2]
[398562662,1765829438335,-175.49723258,0.00016721,2]
[398562663,1765829438346,-259.36743815,0.00016721,2]
[398562672,1765829440062,-565.13532927,0.00016721,2]
[398562674,1765829440072,-500.0,0.00016721,2]
[398562676,1765829440082,-550.0,0.00016798,2]
[398562677,1765829440092,-500.0,0.00016799,2]
[398562678,1765829440102,-500.0,0.00016799,2]
[398562679,1765829440111,-261.97243829,0.00016799,2]
[398562689,1765829443280,-232.75,0.00016799,2]
[398562690,1765829443291,-500.0,0.00016799,2]
[398562691,1765829443302,-500.0,0.00016799,2]
[398562692,1765829443314,-1356.59,0.000168,2]
[398562696,1765829443493,-321.88509748,0.000168,2]
[398562699,1765829443504,-860.86,0.000168,2]
[398562716,1765829443654,-756.69160252,0.000168,2]
[398562718,1765829443664,-28037.2663,0.000168,2]
[398562720,1765829443673,-485.16,0.000168,2]
[398562722,1765829443683,-480.76,0.000168,2]
[398562724,1765829443692,-1000.0,0.000168,2]
[398562726,1765829443701,-480.76,0.000168,2]
[398562728,1765829443710,-480.76,0.000168,2]
[398562730,1765829443719,-480.76,0.000168,2]
[398562832,1765829446043,-658.61,0.000168,2]
[398562833,1765829446062,-400.34557275,0.000168,2]
[398562834,1765829446074,-1127.14707422,0.000168,2]
[398562836,1765829446084,-500.0,0.00016849,2]
[398562838,1765829446094,-1127.1470742,0.0001685,2]
[398562840,1765829446104,-151.0,0.0001689,2]
[398562842,1765829446114,-151.0,0.0001689,2]
[398562844,1765829446126,-151.0,0.0001689,2]
[398562846,1765829446143,-151.0,0.0001689,2]
[398562847,1765829446154,-151.0,0.0001689,2]
[398562848,1765829446165,-151.0,0.0001689,2]
[398562849,1765829446176,-151.0,0.0001689,2]
[398562850,1765829446187,-151.0,0.0001689,2]
[398562851,1765829446198,-151.0,0.0001689,2]
[398562852,1765829446208,-151.0,0.0001689,2]
[398562853,1765829446221,-151.0,0.0001689,2]
[398562854,1765829446242,-151.0,0.0001689,2]
[398562855,1765829446253,-200.0,0.0001689,2]
[398562856,1765829446264,-207.4,0.0001689,2]
[398562857,1765829446275,-500.0,0.0001689,2]
[398562858,1765829446297,-500.0,0.0001689,2]
[398562859,1765829446309,-500.0,0.0001689,2]
[398562860,1765829446324,-242.25792744,0.0001689,2]
[398562861,1765829446334,-151.0,0.00016897,2]
[398562862,1765829446344,-1213.70128937,0.00016899,5]
[398562863,1765829446354,-1621.172,0.00016899,2]
[398562864,1765829446364,-179.386,0.00016899,2]
[398562865,1765829446374,-236.8507,0.000169,2]
[398562866,1765829446384,-176.3394,0.000169,2]
[398562867,1765829446394,-1029.7974,0.000169,2]
[398562868,1765829446404,-232.71774576,0.000169,2]
[398562869,1765829446414,-1127.1470742,0.000169,2]
[398562870,1765829446424,-1533.30664449,0.000169,2]
[398562871,1765829446434,-500.0,0.00016985,2]
[398562872,1765829446444,-192.6214852,0.00016985,2]
[398562873,1765829446455,-495.27381464,0.00016985,2]
[398562874,1765829446465,-500.0,0.00016986,2]
[398562875,1765829446475,-53360.96,0.00016986,2]
[398562876,1765829446484,-5231.3145476,0.00016998,2]
[398562877,1765829446494,-85228.4971454,0.00016998,2]
[398562878,1765829446503,-2065.1364525,0.00016998,2]
[398562879,1765829446513,-150.0,0.00016999,2]
[398562880,1765829446523,-6146.1,0.00016999,2]
[398562881,1765829446532,-162786.77546365,0.00017,2]
[398562883,1765829448904,-2731.44,0.00017,2]
[398562884,1765829449192,-16484.42840632,0.00017,2]
[398562885,1765829449203,-616.41039104,0.00017,2]
[398562886,1765829449220,-2468.8265872,0.00017,2]
[398562887,1765829449248,-7322.33,0.00017,2]
[398562888,1765829449259,-356.15,0.00017,2]
[398563036,1765830493750,1000.0,0.00015638,2]
[398563093,1765830623742,166.66,0.0001491,2]
[398563094,1765830623941,166.66,0.00015224,2]
[398563095,1765830624146,166.66,0.00015538,2]
[398563132,1765830632799,-150.39,0.00015745,2]
[398563133,1765830632808,-121.15991355,0.00015802,2]
[398563134,1765830632819,-276.80559916,0.00015802,2]
[398563135,1765830632830,-68.13448729,0.00015802,2]
[398563136,1765830632840,-1804.92617272,0.00015808,2]
[398563137,1765830632922,-1750.55382728,0.00015808,2]
[398563138,1765830632932,-500.0,0.00015826,2]
[398563139,1765830632951,-166.66,0.00015852,2]
[398563140,1765830632962,-200.0,0.00015924,2]
[398563141,1765830632971,-42.03202158,0.00016,4]
[398563142,1765830632983,-4911.49051634,0.00016,4]
[398563143,1765830632994,-28469.48462922,0.00016,4]
[398563144,1765830633005,-1508.04141765,0.00016,4]
[398563145,1765830633016,-1432.49858027,0.00016,4]
[398563146,1765830633027,-4462.6984381,0.00016,4]
[398563147,1765830633043,-4241.55482183,0.00016,4]
[398563148,1765830633055,-497.55228091,0.00016,4]
[398563149,1765830633066,-606.48713533,0.00016,4]
[398563150,1765830633077,-4336.1275322,0.00016,4]
[398563151,1765830633086,-250.0,0.0001611,2]
[398563152,1765830633095,-166.66,0.00016166,2]
[398563153,1765830633104,-1200.0,0.00016171,2]
[398563154,1765830633114,-500.0,0.00016173,2]
[398563155,1765830633123,-500.0,0.00016173,2]
[398563156,1765830633132,-165.05782679,0.00016173,2]
[398563157,1765830633141,-501.51044727,0.00016173,2]
[398563158,1765830633151,-500.0,0.00016173,2]
[398563159,1765830633161,-165.6872714,0.00016173,2]
[398563160,1765830633171,-500.6273257,0.00016173,2]
[398563161,1765830633180,-500.0,0.00016173,2]
[398563162,1765830633190,-500.0,0.00016173,2]
[398563163,1765830633199,-201.4977632,0.00016173,2]
[398563164,1765830633211,-276.27174757,0.00016173,2]
[398563165,1765830633227,-500.40431242,0.00016173,2]
[398563166,1765830633236,-500.0,0.00016173,2]
[398563167,1765830633246,-500.69569811,0.00016173,2]
[398563168,1765830633255,-500.0,0.00016173,2]
[398563169,1765830633264,-500.0,0.00016173,2]
[398563170,1765830633274,-500.0,0.00016173,2]
[398563171,1765830633284,-168.48732497,0.00016173,2]
[398563172,1765830633303,-500.60353783,0.00016173,2]
[398563173,1765830633315,-376.6677597,0.00016173,2]
[398563174,1765830633325,-500.0,0.00016173,2]
[398563175,1765830633335,-500.0,0.00016173,2]
[398563176,1765830633344,-166.68,0.00016181,2]
[398563177,1765830633354,-166.66,0.0001648,2]
[398563178,1765830633363,-30427.01392057,0.00016589,2]